[Event "*** SCC Grand Prix: Titled Tuesday Blitz"]
[Site "Chess.com"]
[Date "2020.07.14"]
[Round "2"]
[White "Slovak_fighter2000"]
[Black "Matols"]
[Result "1-0"]
[WhiteElo "2430"]
[BlackElo "2200"]
[TimeControl "180+1"]
[EndTime "10:17:41 PDT"]
[Termination "Slovak_fighter2000 won by resignation"]

1. d4 {[%clk 0:03:00.8]} 1... Nf6 {[%clk 0:02:58.8]} 2. Bf4 {[%clk 0:02:59.9]}
2... e6 {[%clk 0:02:58.4]} 3. Nf3 {[%clk 0:02:59.8]} 3... c5 {[%clk 0:02:58.4]}
4. e3 {[%clk 0:02:59.8]} 4... d5 {[%clk 0:02:58.2]} 5. c3 {[%clk 0:02:59.5]}
5... Nc6 {[%clk 0:02:58.2]} 6. Nbd2 {[%clk 0:02:59.5]} 6... Bd6 {[%clk
0:02:54.4]} 7. Bg3 {[%clk 0:03:00.4]} 7... O-O {[%clk 0:02:53.3]} 8. Bd3 {[%clk
0:02:59.7]} 8... b6 {[%clk 0:02:51.7]} 9. Qe2 {[%clk 0:02:57.8]} 9... Bb7 {[%clk
0:02:50.7]} 10. Rd1 {[%clk 0:02:57.4]} 10... Re8 {[%clk 0:02:48.3]} 11. e4
{[%clk 0:02:55.9]} 11... dxe4 {[%clk 0:02:38.6]} 12. Nxe4 {[%clk 0:02:56.8]}
12... Nxe4 {[%clk 0:02:25.5]} 13. Qxe4 {[%clk 0:02:53.9]} 13... f5 {[%clk
0:02:25.2]} 14. Qe2 {[%clk 0:02:49.9]} 14... cxd4 {[%clk 0:02:17]} 15. Bc4
{[%clk 0:02:43.9]} 15... Kh8 {[%clk 0:01:41.8]} 16. cxd4 {[%clk 0:02:24.7]}
16... Bb4+ {[%clk 0:01:35.1]} 17. Kf1 {[%clk 0:02:23.3]} 17... Na5 {[%clk
0:01:19.9]} 18. Bb5 {[%clk 0:02:12.6]} 18... Bd5 {[%clk 0:00:59]} 19. Ne5 {[%clk
0:02:07]} 19... Rf8 {[%clk 0:00:53.1]} 20. Qh5 {[%clk 0:02:01.9]} 20... Qf6
{[%clk 0:00:39.1]} 21. Bh4 {[%clk 0:01:56.2]} 21... Qh6 {[%clk 0:00:32.8]} 22.
Qxh6 {[%clk 0:01:48.2]} 22... gxh6 {[%clk 0:00:32.4]} 23. a3 {[%clk 0:01:46.8]}
23... Bd6 {[%clk 0:00:31.7]} 24. f3 {[%clk 0:01:40.6]} 24... Rac8 {[%clk
0:00:30.3]} 25. Ke2 {[%clk 0:01:35.2]} 25... Rc2+ {[%clk 0:00:29.8]} 26. Rd2
{[%clk 0:01:35.4]} 26... Rxd2+ {[%clk 0:00:29.8]} 27. Kxd2 {[%clk 0:01:35.1]}
27... Nb3+ {[%clk 0:00:29.9]} 28. Kd3 {[%clk 0:01:30.6]} 28... Rc8 {[%clk
0:00:30.5]} 29. Nc4 {[%clk 0:01:23.6]} 29... Bf8 {[%clk 0:00:27.5]} 30. Ne3
{[%clk 0:01:19]} 30... Bb7 {[%clk 0:00:26]} 31. Bc4 {[%clk 0:01:03.8]} 31... Na5
{[%clk 0:00:22.8]} 32. Bxe6 {[%clk 0:01:02.4]} 32... Rc7 {[%clk 0:00:22]} 33.
Nxf5 {[%clk 0:00:58.9]} 33... Ba6+ {[%clk 0:00:21]} 34. Ke3 {[%clk 0:00:57.9]}
34... Nc4+ {[%clk 0:00:18.8]} 35. Kf4 {[%clk 0:00:56.9]} 35... Bg7 {[%clk
0:00:15.9]} 36. d5 {[%clk 0:00:53]} 36... Nxb2 {[%clk 0:00:14.3]} 37. d6 {[%clk
0:00:53]} 37... Rc4+ {[%clk 0:00:14.4]} 38. Bxc4 {[%clk 0:00:53.1]} 38... Nxc4
{[%clk 0:00:14.6]} 39. d7 {[%clk 0:00:53.3]} 39... Be5+ {[%clk 0:00:13.5]} 40.
Kg4 {[%clk 0:00:51.7]} 40... h5+ {[%clk 0:00:13.3]} 41. Kxh5 {[%clk 0:00:49.9]}
1-0

[Event "*** SCC Grand Prix: Titled Tuesday Blitz"]
[Site "Chess.com"]
[Date "2020.07.14"]
[Round "2"]
[White "heyiampotato"]
[Black "TigrVShlyape"]
[Result "0-1"]
[WhiteElo "2530"]
[BlackElo "2866"]
[TimeControl "180+1"]
[EndTime "10:17:42 PDT"]
[Termination "TigrVShlyape won on time"]

1. d4 {[%clk 0:03:00.9]} 1... Nf6 {[%clk 0:02:56.7]} 2. c4 {[%clk 0:03:00.7]}
2... g6 {[%clk 0:02:56.7]} 3. Nc3 {[%clk 0:03:00.3]} 3... Bg7 {[%clk 0:02:56.8]}
4. e4 {[%clk 0:03:00.5]} 4... d6 {[%clk 0:02:56.9]} 5. Nf3 {[%clk 0:03:00.9]}
5... O-O {[%clk 0:02:56.5]} 6. Be2 {[%clk 0:03:01.3]} 6... e5 {[%clk 0:02:57]}
7. O-O {[%clk 0:03:01.6]} 7... Nc6 {[%clk 0:02:57.1]} 8. d5 {[%clk 0:03:02.1]}
8... Ne7 {[%clk 0:02:57.1]} 9. Bg5 {[%clk 0:03:02.6]} 9... h6 {[%clk 0:02:49.1]}
10. Be3 {[%clk 0:03:02.3]} 10... Ng4 {[%clk 0:02:48.8]} 11. Bd2 {[%clk
0:03:02.3]} 11... f5 {[%clk 0:02:48.6]} 12. exf5 {[%clk 0:03:02.5]} 12... Nxf5
{[%clk 0:02:41.6]} 13. Rc1 {[%clk 0:02:53.2]} 13... Nf6 {[%clk 0:02:37.1]} 14.
Bd3 {[%clk 0:02:42.7]} 14... a5 {[%clk 0:02:34.4]} 15. Ne4 {[%clk 0:02:28.9]}
15... b6 {[%clk 0:02:33.4]} 16. b3 {[%clk 0:02:26.7]} 16... Bd7 {[%clk
0:02:31.4]} 17. Re1 {[%clk 0:02:16.9]} 17... Qe7 {[%clk 0:02:28.5]} 18. h3
{[%clk 0:02:09.8]} 18... Qf7 {[%clk 0:02:23.4]} 19. Qc2 {[%clk 0:02:07.3]} 19...
Kh8 {[%clk 0:02:05.1]} 20. Bc3 {[%clk 0:01:58.6]} 20... Rae8 {[%clk 0:01:57.1]}
21. Re2 {[%clk 0:01:38.8]} 21... Nh5 {[%clk 0:01:53.5]} 22. Ree1 {[%clk
0:00:57.2]} 22... Nf4 {[%clk 0:01:46.3]} 23. Bf1 {[%clk 0:00:47.6]} 23... g5
{[%clk 0:01:38.5]} 24. Ng3 {[%clk 0:00:40.8]} 24... Qg6 {[%clk 0:01:30.3]} 25.
Kh2 {[%clk 0:00:34.7]} 25... h5 {[%clk 0:01:27.5]} 26. Ne4 {[%clk 0:00:14.8]}
26... g4 {[%clk 0:01:22.2]} 27. hxg4 {[%clk 0:00:14.9]} 27... hxg4 {[%clk
0:01:21.9]} 28. Nfd2 {[%clk 0:00:15.1]} 28... Re7 {[%clk 0:01:00.4]} 29. Kg1
{[%clk 0:00:14.1]} 29... Bh6 {[%clk 0:00:56.7]} 30. g3 {[%clk 0:00:10.5]} 30...
Rh7 {[%clk 0:00:45.8]} 31. gxf4 {[%clk 0:00:08.9]} 31... Bxf4 {[%clk 0:00:45]}
32. Bg2 {[%clk 0:00:08.1]} 32... Qh6 {[%clk 0:00:43.4]} 33. Kf1 {[%clk
0:00:03.9]} 33... g3 {[%clk 0:00:38]} 34. f3 {[%clk 0:00:03.9]} 34... Qh2 {[%clk
0:00:35.6]} 35. Nb1 {[%clk 0:00:03]} 35... Ne3+ {[%clk 0:00:32.1]} 36. Rxe3
{[%clk 0:00:02.8]} 36... Bxe3 {[%clk 0:00:32.5]} 0-1

[Event "*** SCC Grand Prix: Titled Tuesday Blitz"]
[Site "Chess.com"]
[Date "2020.07.14"]
[Round "2"]
[White "GianmarcoVaR"]
[Black "mishanick"]
[Result "0-1"]
[WhiteElo "2523"]
[BlackElo "2847"]
[TimeControl "180+1"]
[EndTime "10:17:43 PDT"]
[Termination "mishanick won on time"]

1. d4 {[%clk 0:02:59.8]} 1... Nf6 {[%clk 0:02:58.2]} 2. c4 {[%clk 0:02:59.4]}
2... e6 {[%clk 0:02:58.9]} 3. g3 {[%clk 0:02:59.3]} 3... d5 {[%clk 0:02:58.8]}
4. Nf3 {[%clk 0:02:58.8]} 4... Bb4+ {[%clk 0:02:59.2]} 5. Bd2 {[%clk 0:02:58.7]}
5... Be7 {[%clk 0:02:59.6]} 6. Bg2 {[%clk 0:02:58.9]} 6... c6 {[%clk 0:03:00.2]}
7. Qc2 {[%clk 0:02:58.3]} 7... O-O {[%clk 0:03:00.6]} 8. O-O {[%clk 0:02:58.3]}
8... Nbd7 {[%clk 0:03:01.3]} 9. Bf4 {[%clk 0:02:58.5]} 9... b6 {[%clk
0:03:01.6]} 10. Rd1 {[%clk 0:02:57.4]} 10... Ba6 {[%clk 0:03:01.2]} 11. cxd5
{[%clk 0:02:57.5]} 11... cxd5 {[%clk 0:03:02.1]} 12. Nc3 {[%clk 0:02:57.8]}
12... b5 {[%clk 0:02:58.7]} 13. a3 {[%clk 0:02:30.9]} 13... Rc8 {[%clk
0:02:55.3]} 14. Qb3 {[%clk 0:02:17.1]} 14... Qa5 {[%clk 0:02:48.1]} 15. Bd2
{[%clk 0:02:07.5]} 15... Qb6 {[%clk 0:02:47.2]} 16. Na2 {[%clk 0:02:04.1]} 16...
Rfe8 {[%clk 0:02:31.7]} 17. Bb4 {[%clk 0:01:57.5]} 17... Bd8 {[%clk 0:02:32]}
18. Rac1 {[%clk 0:01:53.1]} 18... Rxc1 {[%clk 0:02:30.5]} 19. Rxc1 {[%clk
0:01:53.3]} 19... Bb7 {[%clk 0:02:31.1]} 20. Bd2 {[%clk 0:01:34.1]} 20... a5
{[%clk 0:02:28.3]} 21. Qc2 {[%clk 0:01:34.6]} 21... Ne4 {[%clk 0:02:22.3]} 22.
Be1 {[%clk 0:01:34]} 22... h6 {[%clk 0:01:42.8]} 23. e3 {[%clk 0:01:34.2]} 23...
Nd6 {[%clk 0:01:40.1]} 24. b3 {[%clk 0:01:20.2]} 24... Qa7 {[%clk 0:01:08.7]}
25. Bf1 {[%clk 0:01:18.6]} 25... Bb6 {[%clk 0:01:08.2]} 26. Bd3 {[%clk
0:01:13.6]} 26... Rc8 {[%clk 0:01:07]} 27. Qe2 {[%clk 0:01:07]} 27... Rxc1
{[%clk 0:01:06.1]} 28. Nxc1 {[%clk 0:01:07.6]} 28... Bc6 {[%clk 0:01:06.7]} 29.
Ne5 {[%clk 0:01:02.9]} 29... Nxe5 {[%clk 0:01:03.3]} 30. dxe5 {[%clk 0:01:03.5]}
30... Ne4 {[%clk 0:01:02.5]} 31. Bxb5 {[%clk 0:01:03.4]} 31... Bxb5 {[%clk
0:01:01.2]} 32. Qxb5 {[%clk 0:01:04]} 32... Bxe3 {[%clk 0:01:01.9]} 33. Nd3
{[%clk 0:00:49.6]} 33... Bd2 {[%clk 0:01:01.7]} 34. Bxd2 {[%clk 0:00:34.5]}
34... Nxd2 {[%clk 0:01:02.6]} 35. Qc5 {[%clk 0:00:30.3]} 35... Qa6 {[%clk
0:00:53.1]} 36. Qc2 {[%clk 0:00:27]} 36... Nf3+ {[%clk 0:00:50.1]} 37. Kg2
{[%clk 0:00:27.3]} 37... Qxd3 {[%clk 0:00:49.2]} 38. Qc8+ {[%clk 0:00:02.3]}
38... Kh7 {[%clk 0:00:46.3]} 39. Qc7 {[%clk 0:00:03.2]} 39... Qe4 {[%clk
0:00:42.9]} 40. Kf1 {[%clk 0:00:01.7]} 40... Nd2+ {[%clk 0:00:42.6]} 41. Kg1
{[%clk 0:00:01.8]} 41... Qe1+ {[%clk 0:00:43.2]} 0-1

[Event "*** SCC Grand Prix: Titled Tuesday Blitz"]
[Site "Chess.com"]
[Date "2020.07.14"]
[Round "2"]
[White "DishonorOnYourCow"]
[Black "gagtemp"]
[Result "1-0"]
[WhiteElo "2344"]
[BlackElo "1935"]
[TimeControl "180+1"]
[EndTime "10:17:44 PDT"]
[Termination "DishonorOnYourCow won on time"]

1. d4 {[%clk 0:03:00.9]} 1... d5 {[%clk 0:02:59.6]} 2. c4 {[%clk 0:02:59.2]}
2... e6 {[%clk 0:02:59.6]} 3. Nc3 {[%clk 0:02:58.4]} 3... c5 {[%clk 0:02:59.3]}
4. cxd5 {[%clk 0:02:57.8]} 4... exd5 {[%clk 0:03:00.2]} 5. Nf3 {[%clk
0:02:56.8]} 5... Nc6 {[%clk 0:03:00.2]} 6. g3 {[%clk 0:02:53.3]} 6... Nf6 {[%clk
0:02:59.8]} 7. Bg2 {[%clk 0:02:47.5]} 7... Be7 {[%clk 0:03:00.3]} 8. Bg5 {[%clk
0:02:46.5]} 8... O-O {[%clk 0:02:57.9]} 9. O-O {[%clk 0:02:45.9]} 9... cxd4
{[%clk 0:02:55.5]} 10. Nxd4 {[%clk 0:02:45.4]} 10... h6 {[%clk 0:02:55.5]} 11.
Bf4 {[%clk 0:02:41.4]} 11... Re8 {[%clk 0:02:45.5]} 12. Rc1 {[%clk 0:02:40.4]}
12... Bg4 {[%clk 0:02:38.2]} 13. Ndb5 {[%clk 0:02:33.9]} 13... d4 {[%clk
0:02:07]} 14. Bxc6 {[%clk 0:01:56.7]} 14... bxc6 {[%clk 0:02:03]} 15. Nxd4
{[%clk 0:01:56.2]} 15... c5 {[%clk 0:01:21.7]} 16. Nf3 {[%clk 0:01:50.2]} 16...
Qb6 {[%clk 0:01:14.3]} 17. Na4 {[%clk 0:01:38.8]} 17... Qb4 {[%clk 0:00:58.4]}
18. Qb3 {[%clk 0:01:29]} 18... Qa5 {[%clk 0:00:49.2]} 19. Bd2 {[%clk 0:01:17.7]}
19... Qa6 {[%clk 0:00:39.5]} 20. Qc4 {[%clk 0:01:06]} 20... Qb7 {[%clk
0:00:32.2]} 21. Ne5 {[%clk 0:00:48]} 21... Bh3 {[%clk 0:00:28]} 22. Qxf7+ {[%clk
0:00:45.6]} 22... Kh8 {[%clk 0:00:22.1]} 23. f3 {[%clk 0:00:37.7]} 23... Bxf1
{[%clk 0:00:19.3]} 24. Bxh6 {[%clk 0:00:36.6]} 24... Rg8 {[%clk 0:00:11.2]} 25.
Ng6+ {[%clk 0:00:31.3]} 25... Kh7 {[%clk 0:00:10.7]} 26. Nxe7 {[%clk 0:00:31.8]}
26... Bxe2 {[%clk 0:00:07.5]} 27. Bg5 {[%clk 0:00:16.4]} 27... Qxf3 {[%clk
0:00:05.2]} 28. Qg6+ {[%clk 0:00:14.2]} 28... Kh8 {[%clk 0:00:04.3]} 29. Qc2
{[%clk 0:00:11.5]} 29... Rae8 {[%clk 0:00:01.1]} 30. Ng6+ {[%clk 0:00:11]} 1-0

[Event "*** SCC Grand Prix: Titled Tuesday Blitz"]
[Site "Chess.com"]
[Date "2020.07.14"]
[Round "2"]
[White "JosefineHeinemann"]
[Black "Irishchessman16"]
[Result "1-0"]
[WhiteElo "2640"]
[BlackElo "2390"]
[TimeControl "180+1"]
[EndTime "10:17:45 PDT"]
[Termination "JosefineHeinemann won on time"]

1. e4 {[%clk 0:03:00.9]} 1... c5 {[%clk 0:02:59.8]} 2. Nf3 {[%clk 0:02:59.2]}
2... Nc6 {[%clk 0:03:00.1]} 3. d4 {[%clk 0:02:59.8]} 3... cxd4 {[%clk 0:03:01]}
4. Nxd4 {[%clk 0:03:00.4]} 4... Nf6 {[%clk 0:03:00.6]} 5. Nc3 {[%clk 0:03:00.6]}
5... e5 {[%clk 0:03:01]} 6. Ndb5 {[%clk 0:03:01.2]} 6... d6 {[%clk 0:03:01.2]}
7. Bg5 {[%clk 0:03:01.7]} 7... a6 {[%clk 0:03:01.5]} 8. Na3 {[%clk 0:03:02]}
8... b5 {[%clk 0:03:02.1]} 9. Bxf6 {[%clk 0:03:02.1]} 9... gxf6 {[%clk
0:03:01.9]} 10. Nd5 {[%clk 0:03:02.7]} 10... Bg7 {[%clk 0:03:01.1]} 11. c3
{[%clk 0:03:01.1]} 11... O-O {[%clk 0:02:56.3]} 12. Nc2 {[%clk 0:02:58.4]} 12...
f5 {[%clk 0:02:47.2]} 13. exf5 {[%clk 0:02:59.3]} 13... Bxf5 {[%clk 0:02:46.6]}
14. Nce3 {[%clk 0:02:58.1]} 14... Be6 {[%clk 0:02:46.6]} 15. Bd3 {[%clk
0:02:58.8]} 15... f5 {[%clk 0:02:46.7]} 16. Qh5 {[%clk 0:02:44.1]} 16... e4
{[%clk 0:02:44.4]} 17. Bc2 {[%clk 0:02:41.3]} 17... b4 {[%clk 0:02:40.6]} 18.
Nf4 {[%clk 0:02:38.4]} 18... Bf7 {[%clk 0:02:06.6]} 19. Qxf5 {[%clk 0:02:37.5]}
19... bxc3 {[%clk 0:01:43.5]} 20. Bxe4 {[%clk 0:02:27.5]} 20... Qh4 {[%clk
0:01:42.8]} 21. g3 {[%clk 0:02:13.2]} 21... cxb2 {[%clk 0:01:42.9]} 22. Rb1
{[%clk 0:02:07.7]} 22... Bc3+ {[%clk 0:01:37]} 23. Kf1 {[%clk 0:02:00.6]} 23...
Bc4+ {[%clk 0:01:36]} 24. Nxc4 {[%clk 0:01:59.6]} 24... Rxf5 {[%clk 0:01:35.2]}
25. gxh4 {[%clk 0:01:58]} 25... Rxf4 {[%clk 0:01:35.4]} 26. Bxc6 {[%clk
0:01:58.1]} 26... Raf8 {[%clk 0:01:35]} 27. f3 {[%clk 0:01:51.9]} 27... Rxh4
{[%clk 0:01:23.7]} 28. Nxd6 {[%clk 0:01:45.9]} 28... Rh6 {[%clk 0:01:19.2]} 29.
Bd5+ {[%clk 0:01:43.5]} 29... Kg7 {[%clk 0:01:17.5]} 30. Rg1+ {[%clk 0:01:40.2]}
30... Rg6 {[%clk 0:01:14.3]} 31. Ke2 {[%clk 0:01:32.5]} 31... Rd8 {[%clk
0:01:06.7]} 32. Ne4 {[%clk 0:01:27.4]} 32... Be5 {[%clk 0:01:03.2]} 33. Bc4
{[%clk 0:01:23.8]} 33... Rc8 {[%clk 0:00:38]} 34. Rxg6+ {[%clk 0:01:15.8]} 34...
hxg6 {[%clk 0:00:36.3]} 35. Bxa6 {[%clk 0:01:16.7]} 35... Rh8 {[%clk 0:00:31.2]}
36. a4 {[%clk 0:01:11.1]} 36... Rxh2+ {[%clk 0:00:30]} 37. Ke3 {[%clk
0:01:11.1]} 37... Kf7 {[%clk 0:00:22.2]} 38. a5 {[%clk 0:01:08]} 38... Rh8
{[%clk 0:00:17.2]} 39. Bb7 {[%clk 0:01:03.9]} 39... Ke7 {[%clk 0:00:08.2]} 40.
a6 {[%clk 0:00:58.2]} 40... Rd8 {[%clk 0:00:04.4]} 41. Ke2 {[%clk 0:00:51.3]}
41... Bd4 {[%clk 0:00:02.1]} 42. Rd1 {[%clk 0:00:47.2]} 42... Kd7 {[%clk
0:00:01.2]} 43. Rxd4+ {[%clk 0:00:44.2]} 43... Kc7 {[%clk 0:00:01.6]} 44. Rb4
{[%clk 0:00:45.1]} 1-0

[Event "*** SCC Grand Prix: Titled Tuesday Blitz"]
[Site "Chess.com"]
[Date "2020.07.14"]
[Round "2"]
[White "Msb2"]
[Black "eCztery"]
[Result "1-0"]
[WhiteElo "2882"]
[BlackElo "2445"]
[TimeControl "180+1"]
[EndTime "10:17:45 PDT"]
[Termination "Msb2 won by checkmate"]

1. d4 {[%clk 0:03:00.9]} 1... d5 {[%clk 0:02:59]} 2. c4 {[%clk 0:03:01.2]} 2...
e6 {[%clk 0:02:54.8]} 3. Nc3 {[%clk 0:03:01]} 3... Nf6 {[%clk 0:02:54.7]} 4.
cxd5 {[%clk 0:03:00.7]} 4... exd5 {[%clk 0:02:54.7]} 5. Bg5 {[%clk 0:03:00.8]}
5... Bb4 {[%clk 0:02:53.8]} 6. e3 {[%clk 0:03:00.5]} 6... c5 {[%clk 0:02:53.7]}
7. dxc5 {[%clk 0:02:55.5]} 7... Nbd7 {[%clk 0:02:42.3]} 8. Bb5 {[%clk
0:02:49.1]} 8... O-O {[%clk 0:02:34.7]} 9. Bxd7 {[%clk 0:02:40.5]} 9... Bxd7
{[%clk 0:02:31.5]} 10. Qd4 {[%clk 0:02:39.9]} 10... Bxc3+ {[%clk 0:02:08.4]} 11.
Qxc3 {[%clk 0:02:24.1]} 11... Rc8 {[%clk 0:02:03.2]} 12. Bxf6 {[%clk 0:02:20.7]}
12... Qxf6 {[%clk 0:01:47]} 13. Qxf6 {[%clk 0:02:20.2]} 13... gxf6 {[%clk
0:01:47.9]} 14. Nf3 {[%clk 0:02:20.2]} 14... Rxc5 {[%clk 0:01:47.1]} 15. Nd4
{[%clk 0:02:20.6]} 15... Rfc8 {[%clk 0:01:40.4]} 16. Kd2 {[%clk 0:02:20.7]}
16... Kf8 {[%clk 0:01:34.7]} 17. Rhc1 {[%clk 0:02:19.3]} 17... b6 {[%clk
0:01:26.8]} 18. Rc2 {[%clk 0:02:12.9]} 18... Ke7 {[%clk 0:01:24.3]} 19. Rac1
{[%clk 0:02:11.5]} 19... Kd6 {[%clk 0:01:24.8]} 20. Kd3 {[%clk 0:02:03.6]} 20...
a5 {[%clk 0:01:06.5]} 21. Rc3 {[%clk 0:01:56.7]} 21... b5 {[%clk 0:01:02.2]} 22.
Rxc5 {[%clk 0:01:52.9]} 22... Rxc5 {[%clk 0:01:03.1]} 23. Rxc5 {[%clk
0:01:45.8]} 23... Kxc5 {[%clk 0:01:04]} 24. Nb3+ {[%clk 0:01:46.1]} 24... Kb4
{[%clk 0:00:54.8]} 25. Kd4 {[%clk 0:01:46.3]} 25... a4 {[%clk 0:00:50.4]} 26.
Nc5 {[%clk 0:01:42.3]} 26... Be6 {[%clk 0:00:49.7]} 27. Nd3+ {[%clk 0:01:37.1]}
27... Ka5 {[%clk 0:00:43.2]} 28. Kc5 {[%clk 0:01:36.8]} 28... d4 {[%clk
0:00:42.5]} 29. a3 {[%clk 0:01:29.7]} 29... dxe3 {[%clk 0:00:41.6]} 30. fxe3
{[%clk 0:01:30.6]} 30... Bf5 {[%clk 0:00:34.4]} 31. Nb4 {[%clk 0:01:29.7]} 31...
Be4 {[%clk 0:00:33.8]} 32. g3 {[%clk 0:01:29.2]} 32... f5 {[%clk 0:00:33.8]} 33.
Na2 {[%clk 0:01:27.6]} 33... h6 {[%clk 0:00:32.3]} 34. Nc3 {[%clk 0:01:27.6]}
34... Bf3 {[%clk 0:00:23]} 35. Nxb5 {[%clk 0:01:26.7]} 35... f6 {[%clk
0:00:15.3]} 36. Nd4 {[%clk 0:01:26.8]} 36... Be4 {[%clk 0:00:15]} 37. h4 {[%clk
0:01:27.1]} 37... h5 {[%clk 0:00:14.7]} 38. Nc6+ {[%clk 0:01:27.3]} 38... Ka6
{[%clk 0:00:14.3]} 39. Nb4+ {[%clk 0:01:27.5]} 39... Ka5 {[%clk 0:00:14.5]} 40.
Nd5 {[%clk 0:01:27.7]} 40... Bxd5 {[%clk 0:00:14.5]} 41. Kxd5 {[%clk 0:01:28.6]}
41... Kb5 {[%clk 0:00:15]} 42. Kd4 {[%clk 0:01:29.2]} 42... Kb6 {[%clk
0:00:14.2]} 43. Kc4 {[%clk 0:01:29.3]} 43... Kc6 {[%clk 0:00:14.9]} 44. b3
{[%clk 0:01:25.4]} 44... axb3 {[%clk 0:00:14.6]} 45. Kxb3 {[%clk 0:01:26.3]}
45... Kb5 {[%clk 0:00:15.1]} 46. Kc3 {[%clk 0:01:21.6]} 46... Kc5 {[%clk
0:00:14.9]} 47. a4 {[%clk 0:01:20.3]} 47... Kd5 {[%clk 0:00:14.7]} 48. a5 {[%clk
0:01:16.4]} 48... Ke4 {[%clk 0:00:15.6]} 49. a6 {[%clk 0:01:16.1]} 49... Kxe3
{[%clk 0:00:15.9]} 50. a7 {[%clk 0:01:16.6]} 50... Kf3 {[%clk 0:00:16.3]} 51.
a8=Q+ {[%clk 0:01:16.5]} 51... Kxg3 {[%clk 0:00:17.2]} 52. Kd2 {[%clk
0:01:14.9]} 52... Kxh4 {[%clk 0:00:17.1]} 53. Qg2 {[%clk 0:01:11.5]} 53... f4
{[%clk 0:00:16.9]} 54. Qg1 {[%clk 0:01:11.7]} 54... f5 {[%clk 0:00:16.5]} 55.
Ke2 {[%clk 0:01:11]} 55... Kh3 {[%clk 0:00:12.8]} 56. Kf3 {[%clk 0:01:11.9]}
56... h4 {[%clk 0:00:13.3]} 57. Qh1# {[%clk 0:01:11.9]} 1-0

[Event "*** SCC Grand Prix: Titled Tuesday Blitz"]
[Site "Chess.com"]
[Date "2020.07.14"]
[Round "2"]
[White "grunbergmihai"]
[Black "TimofeevAr"]
[Result "1-0"]
[WhiteElo "2518"]
[BlackElo "2781"]
[TimeControl "180+1"]
[EndTime "10:17:47 PDT"]
[Termination "grunbergmihai won by resignation"]

1. Nf3 {[%clk 0:03:00.9]} 1... Nf6 {[%clk 0:02:58.1]} 2. c4 {[%clk 0:03:01.6]}
2... c5 {[%clk 0:02:56.6]} 3. Nc3 {[%clk 0:03:01.1]} 3... d5 {[%clk 0:02:56.9]}
4. cxd5 {[%clk 0:03:01.1]} 4... Nxd5 {[%clk 0:02:57.3]} 5. d4 {[%clk 0:03:01.5]}
5... Nxc3 {[%clk 0:02:56.7]} 6. bxc3 {[%clk 0:03:01.5]} 6... g6 {[%clk
0:02:57.3]} 7. g3 {[%clk 0:02:56.7]} 7... Bg7 {[%clk 0:02:57.3]} 8. Bg2 {[%clk
0:02:56.7]} 8... O-O {[%clk 0:02:57.1]} 9. O-O {[%clk 0:02:56.4]} 9... Nc6
{[%clk 0:02:56.7]} 10. e3 {[%clk 0:02:51.7]} 10... e5 {[%clk 0:02:51.7]} 11. d5
{[%clk 0:02:42.7]} 11... Na5 {[%clk 0:02:51.4]} 12. e4 {[%clk 0:02:36.3]} 12...
b6 {[%clk 0:02:50.5]} 13. Qe2 {[%clk 0:02:25.1]} 13... c4 {[%clk 0:02:42.4]} 14.
Ba3 {[%clk 0:02:22.3]} 14... Re8 {[%clk 0:02:41.9]} 15. Rab1 {[%clk 0:02:15.6]}
15... Ba6 {[%clk 0:02:41.2]} 16. h4 {[%clk 0:02:12.4]} 16... Nb7 {[%clk
0:02:31.6]} 17. Rfd1 {[%clk 0:02:10.2]} 17... Nd6 {[%clk 0:02:25.3]} 18. h5
{[%clk 0:02:03.9]} 18... Qc7 {[%clk 0:02:23.8]} 19. hxg6 {[%clk 0:02:01.8]}
19... hxg6 {[%clk 0:02:23.4]} 20. Bh3 {[%clk 0:01:53.9]} 20... Rad8 {[%clk
0:02:15.1]} 21. Kg2 {[%clk 0:01:52.8]} 21... Bf6 {[%clk 0:02:09.9]} 22. Bg4
{[%clk 0:01:45.2]} 22... Kg7 {[%clk 0:02:08.8]} 23. Nd2 {[%clk 0:01:39.2]} 23...
Rh8 {[%clk 0:01:59]} 24. Rh1 {[%clk 0:01:38.7]} 24... b5 {[%clk 0:01:54.3]} 25.
Qe3 {[%clk 0:01:34.7]} 25... Be7 {[%clk 0:01:44.7]} 26. Rxh8 {[%clk 0:01:25.9]}
26... Rxh8 {[%clk 0:01:44]} 27. Rh1 {[%clk 0:01:23.8]} 27... Rxh1 {[%clk
0:01:40.7]} 28. Kxh1 {[%clk 0:01:24.7]} 28... Bc8 {[%clk 0:01:23.1]} 29. Bxc8
{[%clk 0:01:22]} 29... Nxc8 {[%clk 0:01:23.3]} 30. Bxe7 {[%clk 0:01:18.2]} 30...
Qxe7 {[%clk 0:01:23.6]} 31. f4 {[%clk 0:01:12.9]} 31... a5 {[%clk 0:01:20.8]}
32. Nf3 {[%clk 0:01:08.6]} 32... f6 {[%clk 0:01:20.6]} 33. fxe5 {[%clk
0:01:03.2]} 33... fxe5 {[%clk 0:01:20.9]} 34. Ng5 {[%clk 0:01:02.2]} 34... Nd6
{[%clk 0:01:20.9]} 35. Ne6+ {[%clk 0:01:01.9]} 35... Kg8 {[%clk 0:01:21.2]} 36.
Qb6 {[%clk 0:00:48.9]} 36... Nxe4 {[%clk 0:01:12.3]} 37. Qb8+ {[%clk 0:00:48.5]}
37... Kh7 {[%clk 0:01:11.1]} 38. Qxe5 {[%clk 0:00:48.1]} 38... Qf6 {[%clk
0:00:41]} 39. Qxe4 {[%clk 0:00:44.4]} 39... Qf1+ {[%clk 0:00:40.1]} 40. Kh2
{[%clk 0:00:43.5]} 40... Qf2+ {[%clk 0:00:40.3]} 41. Qg2 {[%clk 0:00:40.5]}
41... Qxg2+ {[%clk 0:00:40.6]} 42. Kxg2 {[%clk 0:00:40]} 42... b4 {[%clk
0:00:41.5]} 43. cxb4 {[%clk 0:00:37.6]} 43... axb4 {[%clk 0:00:41.9]} 44. Nd4
{[%clk 0:00:33.1]} 44... Kg7 {[%clk 0:00:41.7]} 45. Kf3 {[%clk 0:00:32.1]} 45...
Kf6 {[%clk 0:00:42.1]} 46. Ke4 {[%clk 0:00:32.1]} 46... c3 {[%clk 0:00:42.3]}
47. d6 {[%clk 0:00:28.9]} 47... Kf7 {[%clk 0:00:40.5]} 48. Nc2 {[%clk
0:00:26.4]} 48... Ke6 {[%clk 0:00:39.9]} 49. Nxb4 {[%clk 0:00:25.6]} 49... Kxd6
{[%clk 0:00:40.6]} 50. Kd3 {[%clk 0:00:25.5]} 50... Kc5 {[%clk 0:00:40.7]} 51.
Kxc3 {[%clk 0:00:25.4]} 1-0